bitfinex/quotes_SOLUSD_20260309
["timestamp","ask_amount","ask_price","bid_price","bid_amount"]
[1773036428112,3.05265966,84.085,84.034,11.89994526]
[1773036428315,3.05265966,84.079,84.04,11.64403324]
[1773036428625,41.62405156,84.086,84.034,11.89994526]
[1773036428626,3.05265966,84.069,84.034,11.89994526]
[1773036428926,3.05265966,84.069,84.04,11.64403324]
[1773036429104,3.05265966,84.069,84.05,11.64403324]
[1773036429720,3.05265966,84.069,84.04,11.64403324]
[1773036430405,3.05265966,84.067,84.04,11.64403324]
[1773036430601,3.05265966,84.059,84.02,11.64403324]
[1773036431418,3.05265966,84.049,84.018,11.90221143]
[1773036431899,3.69383402,84.087,84.01,11.74403324]
[1773036431900,3.05265966,84.029,84.01,0.1]
[1773036434026,3.05265966,84.027,84.01,0.1]
[1773036435444,3.05265966,84.057,84.02,4.35436927]
[1773036435753,3.05265966,84.049,84.01,4.45436927]
[1773036436034,3.05265966,84.039,84.01,0.1]
[1773036436212,3.05265966,84.037,84.01,0.1]
[1773036436406,3.05265966,84.037,84.01,4.45436927]
[1773036438229,3.05265966,84.035,84.01,0.1]
[1773036441211,3.05265966,84.033,84.01,0.1]
[1773036441529,3.05265966,84.033,84.01,0.06010292]
[1773036441728,3.05265966,84.029,84.0,0.1]
[1773036441935,3.05265966,84.029,84.001,11.90462018]
[1773036443431,3.05265966,84.028,84.001,11.90462018]
[1773036444522,3.05265966,84.028,84.0,4.45436927]
[1773036444834,3.05265966,84.028,84.0,0.1]
[1773036445733,3.05265966,84.026,84.0,4.45436927]
[1773036445931,11.89923725,84.039,84.001,1.64156745]
[1773036446942,41.64733039,84.039,84.001,1.64156745]
[1773036447438,11.89923725,84.039,84.001,1.64156745]
[1773036447855,2.79579848,84.037,84.002,11.90447846]
[1773036448644,2.79579848,84.037,84.0,0.1]
[1773036449020,2.79579848,84.037,84.001,11.90462018]
[1773036449738,2.79579848,84.035,84.001,11.90462018]
[1773036450041,2.79579848,84.035,84.0,4.45436927]
[1773036450753,2.79579848,84.029,84.0,12.0047417]
[1773036451519,2.79579848,84.029,84.001,1.63081493]
[1773036452423,2.79579848,84.027,84.0,0.1]
[1773036453222,2.76514702,84.034,84.001,1.62817719]
[1773036453940,2.76514702,84.029,84.001,1.62817719]
[1773036454521,2.76514702,84.027,84.0,0.1]
[1773036456143,2.76514702,84.019,84.0,0.1]
[1773036458445,2.76514702,84.024,84.0,0.1]
[1773036459549,2.76514702,84.024,84.0,1.71941059]
[1773036460051,2.76514702,84.059,84.011,1.61941059]
[1773036460244,2.76514702,84.059,84.021,1.61941059]
[1773036461525,0.28432314,84.085,84.031,1.61703333]
[1773036461526,2.76514702,84.064,84.031,1.61703333]
[1773036463052,2.76514702,84.08,84.051,1.61586514]
[1773036463639,2.76514702,84.08,84.053,1.61471036]
[1773036464731,2.76514702,84.094,84.061,1.61356885]
[1773036466856,2.76514702,84.094,84.063,1.61132501]
[1773036468362,2.76514702,84.079,84.02,1.60913243]
[1773036468555,2.76514702,84.079,84.04,4.35356001]
[1773036468950,2.76514702,84.069,84.034,1.60913243]
[1773036469260,2.76514702,84.059,84.033,11.90008687]
[1773036470357,2.76514702,84.069,84.034,1.60805498]
[1773036470939,2.76514702,84.069,84.041,1.60698992]
[1773036471349,2.76514702,84.069,84.042,11.89881249]
[1773036472460,2.76514702,84.069,84.042,1.60489634]
[1773036473044,11.8945059,84.073,84.042,1.60489634]
[1773036473255,14.65965292,84.073,84.042,1.60489634]
[1773036473456,14.65965292,84.073,84.033,29.75021717]
[1773036473457,2.76514702,84.072,84.034,1.60386755]
[1773036473959,11.8945059,84.073,84.031,11.9003701]
[1773036473960,4.35356001,84.06,84.031,11.9003701]
[1773036474145,2.76514702,84.059,84.031,11.9003701]
[1773036474866,2.76514702,84.059,84.027,11.9009366]
[1773036475159,2.76514702,84.059,84.027,13.50378718]
[1773036475539,11.89654762,84.058,84.027,13.50378718]
[1773036475745,2.76514702,84.057,84.027,13.50378718]
[1773036476566,2.76514702,84.062,84.031,1.60085155]
[1773036476953,2.76514702,84.06,84.032,11.90022848]
[1773036477546,2.76514702,84.059,84.032,11.90022848]
[1773036478267,2.76514702,84.069,84.033,1.59986922]
[1773036478567,2.76514702,84.068,84.033,1.59986922]
[1773036480567,2.76514702,84.075,84.035,1.59698942]
[1773036480956,2.76514702,84.069,84.035,1.59698942]
[1773036482167,2.76514702,84.078,84.041,1.59605145]
[1773036482945,2.76514702,84.078,84.051,1.59420771]
[1773036483462,2.92982009,84.077,84.043,1.59330169]
[1773036483967,2.92982009,84.069,84.042,11.89881249]
[1773036485055,2.92982009,84.067,84.042,11.89881249]
[1773036485254,2.92982009,84.067,84.033,1.59240608]
[1773036487873,2.92982009,84.067,84.035,1.5897805]
[1773036488865,2.92982009,84.066,84.035,1.5897805]
[1773036489279,2.8127536,84.079,84.041,1.58807999]
[1773036490853,2.8127536,84.076,84.043,1.58641832]
[1773036491774,2.8127536,84.083,84.051,1.58560177]
[1773036492363,2.8127536,84.079,84.051,1.58560177]
[1773036492857,2.8127536,84.079,84.042,41.64584373]
[1773036493163,2.8127536,84.079,84.043,1.5847946]
[1773036493762,2.8127536,84.077,84.043,1.5847946]
[1773036497158,2.8127536,84.077,84.051,1.58165757]
[1773036498080,2.8127536,84.102,84.071,1.58089571]
[1773036498266,2.8127536,84.089,84.044,11.89852934]
[1773036498467,2.8127536,84.079,84.044,11.89852934]
[1773036498976,2.8127536,84.079,84.05,4.35356001]
[1773036499180,2.8127536,84.077,84.046,11.89824619]
[1773036500178,2.8127536,84.077,84.047,1.57939812]
[1773036500479,2.8127536,84.077,84.042,11.89878493]
[1773036501768,86.29849079,84.243,84.008,59.51772116]
[1773036501769,2.8127536,84.069,84.03,4.35356001]
[1773036501964,2.8127536,84.069,84.027,1.57793475]
[1773036502363,2.8127536,84.059,84.024,11.90136151]
[1773036502560,2.8127536,84.067,84.041,1.57721564]
[1773036502983,2.8127536,84.067,84.035,1.57721564]
[1773036503182,2.8127536,84.067,84.03,4.35356001]
[1773036503474,2.8127536,84.067,84.031,1.57721564]
[1773036504488,2.8127536,84.065,84.032,11.90022848]
[1773036504690,2.8127536,84.059,84.024,11.90122964]
[1773036504868,2.8127536,84.059,84.031,1.57580211]
[1773036507575,2.8127536,84.059,84.032,11.90022848]
[1773036508580,2.8127536,84.057,84.032,11.90022848]
[1773036509390,2.8127536,84.057,84.032,43.22387086]
[1773036509785,2.8127536,84.057,84.032,13.47329965]
[1773036509984,2.8127536,84.057,84.032,11.90022848]
[1773036513685,2.8127536,84.057,84.03,4.35029824]
[1773036514689,2.8127536,84.057,84.027,11.9009366]
[1773036514879,2.89444809,84.055,84.023,11.90146822]
[1773036515390,2.89444809,84.049,84.014,11.9027781]
[1773036515574,2.89444809,84.047,84.01,34.10841639]
[1773036516995,2.89444809,84.039,84.008,11.90362822]
[1773036517574,59.47849312,84.064,84.0,4.45029824]
[1773036517575,2.89444809,84.037,84.0,0.1]
[1773036518072,2.89444809,84.037,84.002,1.56677125]
[1773036518873,2.89444809,84.037,84.001,11.90462018]
[1773036519492,2.89444809,84.037,84.002,1.56559627]
[1773036519899,2.89444809,84.037,84.01,4.35029824]
[1773036520475,2.89444809,84.035,84.009,1.56559627]
[1773036520681,2.89444809,84.035,84.003,43.2301975]
[1773036521884,2.89444809,84.035,84.005,13.46850146]
[1773036522088,2.89444809,84.033,84.005,11.90405333]
[1773036522407,4.35029824,84.03,84.0,12.00469101]
[1773036522603,2.89444809,84.029,84.0,12.00469101]
[1773036524110,2.89444809,84.027,84.0,0.1]
[1773036525996,2.89444809,84.027,84.001,1.56222992]
[1773036526194,2.89444809,84.036,84.001,1.56222992]
[1773036527288,2.89444809,84.035,84.001,1.56222992]
[1773036528085,2.89444809,84.035,84.002,11.90447846]
[1773036528280,2.89444809,84.035,84.003,1.56115866]
[1773036528907,11.89994526,84.034,84.003,1.56115866]
[1773036529085,2.89444809,84.033,84.002,11.90447846]
[1773036529290,2.89444809,84.033,84.003,1.56063225]
[1773036531206,2.89444809,84.04,84.005,1.55959748]
[1773036531505,2.89444809,84.059,84.021,1.55959748]
[1773036532105,2.89444809,84.059,84.031,1.559089]
[1773036532995,2.89444809,84.057,84.032,11.90022848]
[1773036534395,2.89444809,84.057,84.022,11.9016448]
[1773036534799,2.89444809,84.049,84.022,11.9016448]
[1773036536110,11.89789933,84.049,84.02,4.35029824]
[1773036536303,2.89444809,84.048,84.02,4.35029824]
[1773036536506,2.89444809,84.048,84.016,11.90249476]
[1773036536703,2.89444809,84.059,84.021,1.55663285]
[1773036537009,2.89444809,84.056,84.021,1.55663285]
[1773036538817,2.89444809,84.056,84.023,1.55568943]
[1773036540306,2.89444809,84.056,84.03,4.35029824]
[1773036540618,2.89444809,84.054,84.03,4.35029824]
[1773036541004,2.89444809,84.054,84.024,11.90136151]
[1773036541824,2.89444809,84.054,84.025,1.55431455]
[1773036542821,2.89444809,84.054,84.0,4.45029824]
[1773036542822,2.89444809,84.049,84.001,14.64626764]
[1773036543022,2.80832976,84.037,84.004,2.7412048]
[1773036544717,2.80832976,84.037,84.011,2.74033467]
[1773036545108,2.80832976,84.047,84.011,2.74033467]
[1773036545508,2.80832976,84.047,84.02,4.35029824]
[1773036546003,2.80832976,84.047,84.019,2.73990708]
[1773036546524,11.89797772,84.048,84.001,2.73948441]
[1773036546525,2.80832976,84.039,84.001,2.73948441]
[1773036546824,2.80832976,84.037,84.002,2.73948441]
[1773036548345,2.80832976,84.035,84.004,2.73906659]
[1773036548825,2.8365387,84.056,84.02,4.35029824]
[1773036549003,2.8365387,84.056,84.021,2.73825771]
[1773036549203,2.8365387,84.039,84.003,11.90433674]
[1773036549419,2.8365387,84.039,84.003,14.64219696]
[1773036549622,2.8365387,84.039,84.0,0.1]
[1773036549809,0.28432314,84.055,84.002,2.73786022]
[1773036549810,2.8365387,84.029,84.002,2.73786022]
[1773036550311,0.7746977,84.029,84.002,2.73786022]
[1773036550829,0.7746977,84.029,84.004,2.91572281]
[1773036552108,0.7746977,84.029,84.003,14.82005955]
[1773036552925,4.35029824,84.02,84.0,0.1]
[1773036553112,2.8365387,84.019,84.0,12.0046533]
[1773036553319,2.8365387,84.032,84.001,2.91572281]
[1773036553520,4.35029824,84.03,84.001,2.91572281]
[1773036553728,2.8365387,84.029,84.001,2.91572281]
[1773036554331,2.8365387,84.028,84.003,2.91572281]
[1773036555740,2.8365387,84.028,84.002,11.90447846]
[1773036556333,2.8365387,84.028,84.003,2.91572281]
[1773036556536,2.8365387,84.028,84.004,14.81991784]
[1773036556736,2.8365387,84.028,84.005,2.91572281]
[1773036557131,2.8365387,84.046,84.005,2.91572281]
[1773036557329,4.35029824,84.04,84.005,2.91572281]
[1773036557629,2.8365387,84.039,84.005,2.91572281]
[1773036558733,2.8365387,84.049,84.011,2.91572281]
[1773036561432,2.8365387,84.047,84.013,2.91572281]
[1773036562041,2.8365387,84.049,84.013,2.91572281]
[1773036563367,2.8365387,84.039,84.013,2.91572281]
[1773036564719,2.8365387,84.039,84.014,11.9027781]
[1773036564917,2.8365387,84.039,84.015,2.91572281]
[1773036567057,2.8365387,84.039,84.017,2.91572281]
[1773036567228,2.8365387,84.045,84.017,2.91572281]
[1773036569248,2.8365387,84.045,84.018,14.81793424]
[1773036569743,2.8365387,84.043,84.018,2.91572281]
[1773036569947,2.8365387,84.039,84.017,11.9023512]
[1773036570873,2.8365387,84.029,84.0,0.1]
[1773036571149,4.35029824,84.03,84.0,0.1]
[1773036571150,11.90079497,84.028,84.0,0.1]
[1773036571347,2.8365387,84.027,84.0,0.1]
[1773036571551,2.8365387,84.019,84.0,0.1]
[1773036573557,2.9151598,84.017,84.0,0.1]
[1773036575156,2.9151598,84.015,84.0,0.1]
[1773036577636,2.9151598,84.009,84.0,0.1]
[1773036577841,2.9151598,84.015,84.0,0.1]
[1773036579969,2.9151598,84.024,84.001,2.89212886]
[1773036580457,2.9151598,84.03,84.001,2.89212886]
[1773036580641,4.35526685,84.05,84.011,2.89212886]
[1773036581738,4.35526685,84.05,84.012,11.90306146]
[1773036581739,11.8978215,84.049,84.012,11.90306146]
[1773036582066,11.8978215,84.049,84.013,2.89212886]
[1773036582536,2.9151598,84.048,84.013,2.89212886]
[1773036582736,2.9151598,84.039,84.007,11.90371916]
[1773036583758,2.9151598,84.037,84.008,2.89212886]
[1773036586858,11.89933303,84.039,84.01,2.89212886]
[1773036587958,11.89867091,84.043,84.011,14.79533201]
[1773036588164,2.9151598,84.042,84.012,2.89212886]
[1773036588664,29.74335633,84.053,84.011,11.90320315]
[1773036588665,2.9151598,84.069,84.031,2.89212886]
[1773036588858,2.9151598,84.059,84.021,2.89212886]
[1773036589447,2.9151598,84.049,84.014,2.89212886]
[1773036589638,2.9151598,84.039,84.014,2.89212886]
[1773036590243,2.9151598,84.039,84.015,14.79476529]
[1773036591672,2.9151598,84.039,84.016,2.89212886]
[1773036591873,11.89814223,84.047,84.016,2.89212886]
[1773036591874,14.81330203,84.047,84.016,2.89212886]
[1773036592169,2.9151598,84.046,84.016,2.89212886]
[1773036592549,14.81340599,84.046,84.016,2.89212886]
[1773036593946,2.9151598,84.046,84.018,2.89212886]
[1773036594143,11.89838776,84.045,84.018,2.89212886]
[1773036595155,11.89838776,84.045,84.021,2.89212886]
[1773036595879,11.89838776,84.045,84.0,4.45526685]
[1773036595880,11.89668915,84.057,84.031,2.89212886]
[1773036598078,11.89668915,84.057,84.033,2.89212886]
[1773036598455,11.89668915,84.057,84.0,4.45526685]
[1773036598456,2.9151598,84.056,84.011,2.89212886]
[1773036598657,2.9151598,84.049,84.011,2.89212886]
[1773036600580,2.9151598,84.056,84.013,2.89212886]
[1773036600752,2.9151598,84.059,84.021,2.89212886]
[1773036601181,2.9151598,84.049,84.011,2.89212886]
[1773036601385,2.9151598,84.049,84.012,2.89212886]
[1773036602075,2.9151598,84.039,84.013,11.90291978]
[1773036602282,2.9151598,84.039,84.006,2.89212886]
[1773036602777,2.9151598,84.029,84.0,0.1]
[1773036602979,2.9151598,84.019,83.985,2.93693632]
[1773036603282,2.75357604,84.009,83.985,2.93693632]
[1773036603761,0.28432314,84.029,83.982,2.93693632]
[1773036603957,4.35526685,84.03,83.991,2.93693632]
[1773036604664,11.89923341,84.04,84.011,2.93693632]
[1773036605275,0.28432314,84.053,84.011,2.93693632]
[1773036605579,0.28432314,84.049,84.011,2.93693632]
[1773036605888,2.75357604,84.047,84.011,2.93693632]
[1773036606582,2.75357604,84.045,84.012,2.93693632]
[1773036607987,11.89769972,84.05,84.012,2.93693632]
[1773036608365,11.8969001,84.056,84.021,2.93693632]
[1773036608565,11.89615363,84.061,84.023,2.93693632]
[1773036609384,4.35526685,84.06,84.023,2.93693632]
[1773036609580,2.83735112,84.059,84.023,2.93693632]
[1773036610671,2.83553861,84.049,84.011,2.7515017]
[1773036610878,2.83553861,84.039,84.013,2.7515017]
[1773036612180,4.35526685,84.05,84.013,2.7515017]
[1773036612384,2.83374693,84.049,84.013,2.7515017]
[1773036613667,2.83022506,84.047,84.015,2.7515017]
[1773036616988,11.89796306,84.048,84.014,11.9027781]
[1773036616989,11.89796306,84.048,84.017,2.7515017]
[1773036617197,2.8250925,84.059,84.021,2.7515017]
[1773036617492,2.8250925,84.059,84.031,2.7515017]
[1773036617871,2.88715133,84.049,84.016,11.90249476]
[1773036618271,2.88715133,84.049,84.02,4.35526685]
[1773036619075,2.88715133,84.047,84.01,4.35526685]
[1773036619492,2.88715133,84.053,84.02,4.35526685]
[1773036619879,2.88715133,84.053,84.021,2.7515017]
[1773036620186,2.88715133,84.053,84.02,4.35526685]
[1773036620187,2.88715133,84.094,84.031,2.7515017]
[1773036620385,2.88715133,84.069,84.031,2.7515017]
[1773036620574,2.88715133,84.067,84.031,2.7515017]
[1773036621777,2.88715133,84.067,84.033,2.7515017]
[1773036621976,2.88715133,84.065,84.033,2.7515017]
[1773036622978,2.88715133,84.065,84.041,2.7515017]
[1773036623179,14.78196533,84.071,84.041,2.7515017]
[1773036623378,2.88715133,84.07,84.041,2.7515017]
[1773036623793,2.88715133,84.083,84.043,2.7515017]
[1773036623973,2.88715133,84.085,84.051,2.7515017]
[1773036624578,2.88715133,84.085,84.04,2.7515017]
[1773036624579,2.88715133,84.069,84.04,2.7515017]
[1773036624798,2.88715133,84.069,84.042,2.7515017]
[1773036627290,2.88715133,84.085,84.051,2.7515017]
[1773036628603,4.35526685,84.09,84.051,2.7515017]
[1773036628604,2.88715133,84.079,84.051,2.7515017]
[1773036630885,2.88715133,84.069,84.041,11.89895408]
[1773036631386,2.88715133,84.069,84.042,2.7515017]
[1773036633006,2.80953492,84.117,84.044,2.74111531]
[1773036633188,2.80953492,84.117,84.081,2.74111531]
[1773036633386,11.888062,84.118,84.043,101.13870279]
[1773036633387,2.80953492,84.099,84.043,41.6453482]
[1773036633591,2.80953492,84.089,84.051,2.74111531]
[1773036634303,2.80953492,84.079,84.051,2.74111531]
[1773036634704,2.80953492,84.079,84.053,2.74111531]
[1773036634912,2.80953492,84.089,84.061,2.74111531]
[1773036635407,2.80953492,84.088,84.061,2.74111531]
[1773036635707,2.80953492,84.069,84.027,11.9009366]
[1773036635912,2.80953492,84.069,84.028,2.74111531]
[1773036636107,2.80953492,84.069,84.031,2.74111531]
[1773036636299,2.80953492,84.069,84.041,2.74111531]
[1773036636507,2.80953492,84.076,84.041,2.74111531]
[1773036636906,2.80953492,84.069,84.043,2.74111531]
[1773036638305,2.80953492,84.089,84.051,2.74111531]
[1773036638499,2.80953492,84.079,84.051,2.74111531]
[1773036639290,2.80953492,84.069,84.041,11.89885306]
[1773036639490,2.80953492,84.069,84.037,2.74111531]
[1773036640393,2.80953492,84.069,84.039,2.74111531]
[1773036641091,2.80953492,84.083,84.051,2.74111531]
[1773036641302,2.80953492,84.083,84.053,2.74111531]
[1773036641512,11.89222747,84.089,84.061,2.74111531]
[1773036641896,11.89222747,84.089,84.052,11.89739684]
[1773036641897,2.80953492,84.108,84.08,4.34758169]
[1773036642203,0.2,84.14,84.09,4.34758169]
[1773036642204,14.69793229,84.116,84.09,4.34758169]
[1773036642395,2.80953492,84.116,84.091,2.74111531]
[1773036643329,14.69802092,84.115,84.091,2.74111531]
[1773036643500,2.80953492,84.114,84.091,2.74111531]
[1773036643994,2.80953492,84.109,84.086,11.89250059]
[1773036644196,2.80953492,84.109,84.086,14.6336159]
[1773036644395,2.80953492,84.109,84.086,11.89250059]
[1773036645100,2.80953492,84.109,84.086,14.6336159]
[1773036645304,11.88831033,84.117,84.087,2.74111531]
[1773036645305,2.80953492,84.116,84.087,2.74111531]
[1773036645500,0.2,84.12,84.091,2.74111531]
[1773036645898,1e-08,84.12,84.102,2.74111531]
[1773036646699,1e-08,84.12,84.104,2.74111531]
[1773036647921,1e-08,84.12,84.111,2.74111531]
[1773036648699,1e-08,84.12,84.113,2.74111531]
[1773036648914,0.2,84.14,84.113,2.74111531]
[1773036649921,0.2,84.14,84.12,4.34758169]
[1773036650123,0.2,84.14,84.121,2.74111531]
[1773036650526,2.80953492,84.139,84.113,2.74111531]
[1773036650715,2.80953492,84.139,84.114,11.88862733]
[1773036651042,0.2,84.14,84.121,2.74111531]
[1773036651921,0.2,84.14,84.114,14.62974264]
[1773036652240,3.00953492,84.14,84.114,14.62974264]
[1773036652437,3.00953492,84.14,84.115,2.74111531]
[1773036653641,3.00953492,84.14,84.117,2.74111531]
[1773036654139,0.2,84.15,84.131,2.74111531]
[1773036654722,1e-08,84.16,84.141,2.74111531]
[1773036654919,1e-08,84.17,84.151,2.74111531]
[1773036655125,1e-08,84.17,84.161,2.74111531]
[1773036655321,0.2,84.19,84.161,2.74111531]
[1773036655730,0.2,84.19,84.162,14.62296222]
[1773036656042,0.2,84.19,84.163,2.74111531]
[1773036657023,0.2,84.19,84.171,2.74111531]
[1773036657845,2.80953492,84.187,84.154,2.74111531]
[1773036658347,2.80953492,84.179,84.146,14.62520964]
[1773036660347,2.80953492,84.177,84.14,4.34758169]
[1773036660552,11.87958849,84.178,84.132,11.88597605]
[1773036660553,2.80953492,84.159,84.132,11.88597605]
[1773036660847,2.80953492,84.159,84.132,14.62709136]
[1773036661236,2.80953492,84.159,84.133,2.74111531]
[1773036661548,2.80953492,84.149,84.111,2.74111531]
[1773036662632,2.80953492,84.147,84.112,11.88891002]
[1773036663443,2.80953492,84.147,84.112,14.81188851]
[1773036663654,2.80953492,84.147,84.101,29.72592727]
[1773036663655,11.88382373,84.148,84.094,2.92297849]
[1773036663656,4.34758169,84.12,84.094,2.92297849]
[1773036663838,2.67824576,84.118,84.081,2.92297849]
[1773036664635,11.88820333,84.117,84.083,2.92297849]
[1773036664847,2.67824576,84.116,84.083,2.92297849]
[1773036665158,4.34758169,84.11,84.083,2.92297849]
[1773036665335,2.67824576,84.109,84.082,11.89315192]
[1773036665841,4.34758169,84.1,84.082,11.89315192]
[1773036666245,2.67824576,84.102,84.077,11.89372988]
[1773036666964,2.67824576,84.102,84.021,2.92297849]
[1773036666965,2.67824576,84.089,84.021,2.92297849]
[1773036667248,11.89044697,84.102,84.041,2.92297849]
[1773036667249,2.67824576,84.078,84.041,2.92297849]
[1773036667842,2.67824576,84.07,84.041,2.92297849]
[1773036668048,2.67824576,84.069,84.041,2.92297849]
[1773036668731,2.67824576,84.077,84.043,2.92297849]
[1773036669948,2.70237347,84.069,84.043,2.92297849]
[1773036670537,2.70237347,84.069,84.042,11.89881249]
[1773036670732,2.70237347,84.067,84.035,11.89980365]
[1773036670954,11.89513251,84.068,84.024,2.79394601]
[1773036670955,2.70237347,84.059,84.024,2.79394601]
[1773036671440,2.70237347,84.059,84.025,11.90121987]
[1773036671641,2.70237347,84.059,84.02,12.00187911]
[1773036671830,2.70237347,84.059,84.031,2.79394601]
[1773036673751,2.70237347,84.059,84.04,11.65072831]
[1773036674059,0.28432314,84.085,84.04,11.65072831]
[1773036674060,2.70237347,84.073,84.041,2.79394601]
[1773036674233,2.70237347,84.072,84.041,2.79394601]
[1773036675128,2.70237347,84.069,84.032,14.69417449]
[1773036675755,11.89513251,84.068,84.032,11.90022848]
[1773036675976,2.70237347,84.067,84.032,11.90022848]
[1773036676254,2.70237347,84.059,84.032,11.90022848]
[1773036677035,2.70237347,84.057,84.025,11.90121987]
[1773036678541,2.70237347,84.057,84.025,2.79394601]
[1773036679377,11.89683068,84.056,84.025,2.79394601]
[1773036679659,2.70237347,84.055,84.022,2.79394601]
[1773036679869,2.70237347,84.055,84.03,11.65072831]
[1773036680054,2.70237347,84.055,84.031,2.79394601]
[1773036680875,2.70237347,84.055,84.021,11.90178645]
[1773036680876,2.70237347,84.07,84.041,2.79394601]
[1773036681050,2.70237347,84.069,84.041,2.79394601]
[1773036681445,2.70237347,84.069,84.042,11.89881249]
[1773036682072,2.70237347,84.067,84.042,11.89881249]
[1773036682269,2.70237347,84.067,84.037,11.89951998]
[1773036682474,2.70237347,84.067,84.038,2.79394601]
[1773036682764,2.70237347,84.067,84.037,11.89951998]
[1773036682954,2.70237347,84.059,84.032,14.69417449]
[1773036684951,2.70237347,84.057,84.032,14.69417449]
[1773036685268,2.70237347,84.057,84.027,11.90079931]
[1773036685464,2.70237347,84.057,84.028,2.79394601]
[1773036686864,2.70237347,84.066,84.03,2.79394601]
[1773036687072,2.70237347,84.066,84.033,2.79394601]
[1773036690075,2.70237347,84.059,84.033,2.79394601]
[1773036691666,2.70237347,84.066,84.035,2.79394601]
[1773036692867,2.70237347,84.059,84.021,2.79394601]
[1773036693062,2.70237347,84.059,84.022,2.82628707]
[1773036693388,2.82151618,84.069,84.022,2.82628707]
[1773036693555,2.82151618,84.069,84.031,2.82628707]
[1773036694775,2.82151618,84.069,84.032,11.90022848]
[1773036694983,2.82151618,84.067,84.033,2.82628707]
[1773036695575,11.89438917,84.074,84.041,2.82628707]
[1773036695781,2.82151618,84.073,84.041,2.82628707]
[1773036696577,2.82151618,84.069,84.041,2.82628707]
[1773036696880,2.82151618,84.058,84.032,11.90022848]
[1773036697257,2.82151618,84.058,84.03,14.726666]
[1773036697674,4.3497813,84.07,84.041,2.82628707]
[1773036697878,2.82151618,84.069,84.041,2.82628707]
[1773036698178,2.82151618,84.069,84.031,2.82628707]
[1773036698557,2.82151618,84.059,84.031,2.82628707]
[1773036698764,2.82151618,84.049,84.023,2.82628707]
[1773036698972,2.82151618,84.039,84.02,0.1]
[1773036699460,2.82151618,84.039,84.02,2.92628707]
[1773036699665,11.89796306,84.048,84.02,2.92628707]
[1773036699666,2.82151618,84.047,84.02,2.92628707]
[1773036700774,2.82151618,84.045,84.02,2.92628707]
[1773036701077,2.82151618,84.045,84.021,11.90178645]
[1773036702081,2.82151618,84.045,84.022,2.82628707]
[1773036703361,11.89711019,84.055,84.024,2.82628707]
[1773036703560,14.71862637,84.055,84.024,2.82628707]
[1773036704680,2.82151618,84.054,84.024,2.82628707]
[1773036704873,2.82151618,84.049,84.024,2.82628707]
[1773036705878,2.82151618,84.047,84.024,2.82628707]
[1773036706577,2.82151618,84.047,84.02,0.1]
[1773036707390,2.82151618,84.047,84.021,11.90178645]
[1773036708169,2.82151618,84.047,84.022,2.82628707]
[1773036710275,2.82151618,84.047,84.024,2.82628707]
[1773036710590,4.3497813,84.06,84.024,2.82628707]
[1773036710791,2.82151618,84.059,84.024,2.82628707]
[1773036712775,2.82151618,84.059,84.02,4.4497813]
[1773036712776,2.82151618,84.049,84.02,0.1]
[1773036712988,2.82151618,84.039,84.02,0.1]
[1773036714394,2.82151618,84.039,84.011,2.82628707]
[1773036714690,2.82151618,84.039,84.004,11.90417227]
[1773036714691,14.72230407,84.029,84.005,2.82628707]
[1773036715196,2.82151618,84.028,84.005,2.82628707]
[1773036715598,2.82151618,84.028,84.006,14.73019869]
[1773036715888,2.82151618,84.028,84.006,2.82628707]
[1773036716289,11.89946149,84.038,84.006,2.82628707]
[1773036716496,11.89946149,84.038,84.011,2.82628707]
[1773036716898,2.82151618,84.037,84.01,11.90330072]
[1773036717701,2.82151618,84.037,84.006,11.9038711]
[1773036718084,2.82151618,84.037,84.007,2.82628707]
[1773036720483,2.82151618,84.029,84.007,2.82628707]
[1773036720694,2.82151618,84.029,84.009,2.82628707]
[1773036721687,2.82151618,84.029,84.004,11.90416703]
[1773036721885,2.82151618,84.029,83.993,2.82628707]
[1773036722101,4.3497813,84.03,83.993,2.82628707]
[1773036722102,2.82151618,84.019,83.994,2.82628707]
[1773036722486,2.82151618,84.008,83.97,4.3497813]
[1773036722697,2.82151618,84.008,83.981,2.82628707]
[1773036723781,2.82151618,84.008,83.986,11.90662416]
[1773036724508,2.82151618,84.008,83.986,14.63364672]
[1773036725608,4.3497813,84.02,83.986,14.63364672]
[1773036725609,2.69999092,84.015,83.993,11.90575405]
[1773036725816,2.69999092,84.019,83.994,2.72702256]
[1773036726702,4.3497813,84.01,83.988,2.72702256]
[1773036726899,2.69999092,84.009,83.987,11.90654798]
[1773036727200,2.69999092,84.019,83.987,11.90654798]
[1773036727400,2.69999092,84.019,83.993,2.72702256]
[1773036728018,2.69999092,84.019,83.994,2.72702256]
[1773036730103,2.84791568,84.017,83.994,2.72702256]
[1773036730703,2.84791568,84.017,83.995,11.90547056]
[1773036731825,2.84791568,84.017,83.994,2.72702256]
[1773036732113,2.84791568,84.015,83.987,2.87252363]
[1773036732321,2.84791568,84.015,83.989,11.90621183]
[1773036733507,2.84791568,84.015,83.992,12.23917459]
[1773036734016,2.84791568,84.015,83.993,2.87252363]
[1773036734618,4.3497813,84.02,83.993,2.87252363]
[1773036734816,7.19769698,84.02,83.993,2.87252363]
[1773036735019,2.84791568,84.019,83.993,2.87252363]